fUST/lending_fUST_20260625
["ID","MTS","AMOUNT","RATE_DAILY","PERIOD"]
[426425030,1782373575000,-500.0,0.00040273,30]
[426425029,1782373575000,-504.25198688,0.00040273,30]
[426425027,1782373575000,-500.0,0.00040273,30]
[426425021,1782373575000,-500.0,0.00040273,30]
[426425024,1782373575000,-516.52573411,0.00040273,30]
[426425025,1782373575000,-500.0,0.00040273,30]
[426425023,1782373575000,-500.0,0.00040273,30]
[426425032,1782373575000,-500.0,0.00040273,30]
[426425026,1782373575000,-396.37466363,0.00040273,30]
[426425033,1782373575000,-500.0,0.00040273,30]
[426425022,1782373575000,-500.0,0.00040273,30]
[426425036,1782373575000,-500.0,0.00040273,30]
[426425034,1782373575000,-500.0,0.00040273,30]
[426425046,1782373575000,-500.0,0.00040273,30]
[426425045,1782373575000,-500.0,0.00040273,30]
[426425043,1782373575000,-500.0,0.00040273,30]
[426425044,1782373575000,-500.0,0.00040273,30]
[426425042,1782373575000,-500.0,0.00040273,30]
[426425047,1782373575000,-500.0,0.00040273,30]
[426425041,1782373575000,-500.0,0.00040273,30]
[426425039,1782373575000,-258.53247867,0.00040273,30]
[426425037,1782373575000,-500.0,0.00040273,30]
[426425038,1782373575000,-535.18452773,0.00040273,30]
[426425035,1782373575000,-500.0,0.00040273,30]
[426425040,1782373575000,-500.0,0.00040273,30]
[426425058,1782373576000,-379.73595436,0.00040273,30]
[426425056,1782373576000,-500.0,0.00040273,30]
[426425055,1782373576000,-500.0,0.00040273,30]
[426425053,1782373576000,-500.0,0.00040273,30]
[426425051,1782373576000,-500.0,0.00040273,30]
[426425052,1782373576000,-612.04826124,0.00040273,30]
[426425050,1782373576000,-500.0,0.00040273,30]
[426425049,1782373576000,-500.0,0.00040273,30]
[426425057,1782373576000,-500.0,0.00040273,30]
[426425054,1782373576000,-500.0,0.00040273,30]
[426425059,1782373576000,-500.0,0.00040273,30]
[426425048,1782373576000,-500.0,0.00040273,30]
[426425060,1782373576000,-500.0,0.00040273,30]
[426425072,1782373576000,-500.0,0.00040273,11]
[426425070,1782373576000,-536.00825244,0.00040273,30]
[426425071,1782373576000,-500.0,0.00040273,30]
[426425069,1782373576000,-500.0,0.00040273,30]
[426425068,1782373576000,-500.0,0.00040273,30]
[426425061,1782373576000,-500.0,0.00040273,11]
[426425066,1782373576000,-500.0,0.00040273,30]
[426425065,1782373576000,-500.0,0.00040273,30]
[426425064,1782373576000,-500.0,0.00040273,11]
[426425063,1782373576000,-500.0,0.00040273,30]
[426425062,1782373576000,-500.0,0.00040273,30]
[426425067,1782373576000,-500.0,0.00040273,11]
[426425083,1782373577000,-500.0,0.00040273,11]
[426425082,1782373577000,-500.0,0.00040273,11]
[426425081,1782373577000,-500.0,0.00040273,11]
[426425080,1782373577000,-500.0,0.00040273,11]
[426425079,1782373577000,-500.0,0.00040273,11]
[426425076,1782373577000,-500.0,0.00040273,11]
[426425077,1782373577000,-500.0,0.00040273,11]
[426425074,1782373577000,-500.0,0.00040273,11]
[426425073,1782373577000,-500.0,0.00040273,30]
[426425085,1782373577000,-500.0,0.00040273,11]
[426425078,1782373577000,-500.0,0.00040273,11]
[426425075,1782373577000,-505.91927465,0.00040273,30]
[426425086,1782373577000,-500.0,0.00040273,11]
[426425088,1782373577000,-500.0,0.00040273,11]
[426425084,1782373577000,-500.0,0.00040273,11]
[426425097,1782373577000,-561.24,0.00040273,30]
[426425096,1782373577000,-561.24,0.00040273,30]
[426425095,1782373577000,-561.24,0.00040273,30]
[426425094,1782373577000,-561.24,0.00040273,30]
[426425098,1782373577000,-561.24,0.00040273,30]
[426425091,1782373577000,-500.0,0.00040273,30]
[426425092,1782373577000,-500.0,0.00040273,30]
[426425090,1782373577000,-576.14,0.00040273,11]
[426425089,1782373577000,-500.0,0.00040273,30]
[426425087,1782373577000,-500.0,0.00040273,11]
[426425093,1782373577000,-547.35110001,0.00040273,30]
[426425106,1782373578000,-500.0,0.00040273,30]
[426425107,1782373578000,-561.24,0.00040273,30]
[426425105,1782373578000,-561.24,0.00040273,30]
[426425104,1782373578000,-561.24,0.00040273,30]
[426425102,1782373578000,-561.24,0.00040273,30]
[426425101,1782373578000,-561.24,0.00040273,30]
[426425099,1782373578000,-561.24,0.00040273,30]
[426425100,1782373578000,-561.24,0.00040273,30]
[426425108,1782373578000,-500.0,0.00040273,30]
[426425103,1782373578000,-561.24,0.00040273,30]
[426425109,1782373578000,-561.24,0.00040273,30]
[426425117,1782373578000,-500.0,0.00040273,30]
[426425112,1782373578000,-500.0,0.00040273,30]
[426425120,1782373578000,-561.24,0.00040273,30]
[426425122,1782373578000,-561.24,0.00040273,30]
[426425119,1782373578000,-500.0,0.00040273,30]
[426425118,1782373578000,-561.24,0.00040273,30]
[426425116,1782373578000,-561.24,0.00040273,30]
[426425110,1782373578000,-500.0,0.00040273,30]
[426425121,1782373578000,-561.24,0.00040273,30]
[426425114,1782373578000,-500.0,0.00040273,30]
[426425113,1782373578000,-561.24,0.00040273,30]
[426425111,1782373578000,-561.24,0.00040273,30]
[426425115,1782373578000,-561.24,0.00040273,30]
[426425131,1782373579000,-534.86,0.00040273,30]
[426425132,1782373579000,-500.0,0.00040273,30]
[426425130,1782373579000,-1420.0,0.00040273,30]
[426425129,1782373579000,-1420.0,0.00040273,30]
[426425128,1782373579000,-508.98234117,0.00040273,30]
[426425127,1782373579000,-1420.0,0.00040273,30]
[426425125,1782373579000,-181.2944645,0.00040273,30]
[426425124,1782373579000,-561.24,0.00040273,30]
[426425123,1782373579000,-500.0,0.00040273,30]
[426425133,1782373579000,-1420.0,0.00040273,30]
[426425126,1782373579000,-561.29026052,0.00040273,30]
[426425135,1782373579000,-500.0,0.00040273,30]
[426425134,1782373579000,-534.86,0.00040273,30]
[426425136,1782373579000,-500.0,0.00040273,30]
[426425147,1782373579000,-500.0,0.00040273,30]
[426425146,1782373579000,-534.86,0.00040273,30]
[426425145,1782373579000,-500.0,0.00040273,30]
[426425143,1782373579000,-500.0,0.00040273,30]
[426425144,1782373579000,-1420.0,0.00040273,30]
[426425148,1782373579000,-1420.0,0.00040273,30]
[426425141,1782373579000,-500.0,0.00040273,30]
[426425140,1782373579000,-1420.0,0.00040273,30]
[426425139,1782373579000,-500.0,0.00040273,30]
[426425138,1782373579000,-534.86,0.00040273,30]
[426425137,1782373579000,-1420.0,0.00040273,30]
[426425142,1782373579000,-534.86,0.00040273,30]
[426425157,1782373580000,-534.86,0.00040273,30]
[426425158,1782373580000,-1420.0,0.00040273,30]
[426425156,1782373580000,-560.31014399,0.00040273,30]
[426425155,1782373580000,-534.86,0.00040273,30]
[426425154,1782373580000,-563.86570829,0.00040273,30]
[426425153,1782373580000,-500.0,0.00040273,30]
[426425151,1782373580000,-500.0,0.00040273,30]
[426425150,1782373580000,-500.0,0.00040273,30]
[426425149,1782373580000,-534.86,0.00040273,30]
[426425159,1782373580000,-500.0,0.00040273,30]
[426425152,1782373580000,-1420.0,0.00040273,30]
[426425160,1782373580000,-534.86,0.00040273,30]
[426425161,1782373580000,-1420.0,0.00040273,30]
[426425163,1782373580000,-534.86,0.00040273,30]
[426425174,1782373580000,-500.0,0.00040273,30]
[426425173,1782373580000,-500.0,0.00040273,30]
[426425171,1782373580000,-500.0,0.00040273,30]
[426425170,1782373580000,-534.86,0.00040273,30]
[426425169,1782373580000,-500.0,0.00040273,30]
[426425172,1782373580000,-1420.0,0.00040273,30]
[426425167,1782373580000,-500.0,0.00040273,30]
[426425165,1782373580000,-500.0,0.00040273,30]
[426425164,1782373580000,-1420.0,0.00040273,30]
[426425166,1782373580000,-534.86,0.00040273,30]
[426425162,1782373580000,-500.0,0.00040273,30]
[426425168,1782373580000,-1420.0,0.00040273,30]
[426425183,1782373581000,-1420.0,0.00040273,30]
[426425184,1782373581000,-500.0,0.00040273,30]
[426425181,1782373581000,-500.0,0.00040273,30]
[426425182,1782373581000,-500.0,0.00040273,30]
[426425180,1782373581000,-1420.0,0.00040273,30]
[426425175,1782373581000,-534.86,0.00040273,30]
[426425178,1782373581000,-500.0,0.00040273,30]
[426425177,1782373581000,-1420.0,0.00040273,30]
[426425176,1782373581000,-500.0,0.00040273,30]
[426425185,1782373581000,-534.86,0.00040273,30]
[426425179,1782373581000,-500.0,0.00040273,30]
[426425186,1782373581000,-500.0,0.00040273,30]
[426425187,1782373581000,-500.0,0.00040273,30]
[426425189,1782373581000,-1420.0,0.00040273,30]
[426425200,1782373581000,-534.86,0.00040273,30]
[426425198,1782373581000,-500.0,0.00040273,30]
[426425199,1782373581000,-500.0,0.00040273,30]
[426425197,1782373581000,-500.0,0.00040273,30]
[426425194,1782373581000,-500.0,0.00040273,30]
[426425196,1782373581000,-1420.0,0.00040273,30]
[426425193,1782373581000,-534.86,0.00040273,30]
[426425192,1782373581000,-500.0,0.00040273,30]
[426425190,1782373581000,-500.0,0.00040273,30]
[426425191,1782373581000,-500.0,0.00040273,30]
[426425188,1782373581000,-500.0,0.00040273,30]
[426425195,1782373581000,-500.0,0.00040273,30]
[426425206,1782373582000,-510.73407118,0.00040273,30]
[426425212,1782373582000,-534.86,0.00040273,30]
[426425209,1782373582000,-500.0,0.00040273,30]
[426425210,1782373582000,-1420.0,0.00040273,30]
[426425208,1782373582000,-160.62,0.00040273,30]
[426425202,1782373582000,-500.0,0.00040273,30]
[426425204,1782373582000,-500.0,0.00040273,30]
[426425205,1782373582000,-1420.0,0.00040273,30]
[426425201,1782373582000,-500.0,0.00040273,30]
[426425211,1782373582000,-500.0,0.00040273,30]
[426425207,1782373582000,-534.86,0.00040273,30]
[426425213,1782373582000,-500.0,0.00040273,30]
[426425203,1782373582000,-538.4394488,0.00040273,30]
[426425214,1782373582000,-534.86,0.00040273,30]
[426425225,1782373582000,-500.0,0.00040273,30]
[426425226,1782373582000,-535.03530214,0.00040273,30]
[426425224,1782373582000,-500.0,0.00040273,30]
[426425222,1782373582000,-1420.14,0.00040273,30]
[426425223,1782373582000,-534.86,0.00040273,30]
[426425215,1782373582000,-1420.0,0.00040273,30]
[426425221,1782373582000,-500.0,0.00040273,30]
[426425217,1782373582000,-534.86,0.00040273,30]
[426425219,1782373582000,-1420.0,0.00040273,30]
[426425218,1782373582000,-534.86,0.00040273,30]
[426425216,1782373582000,-500.0,0.00040273,30]
[426425220,1782373582000,-534.86,0.00040273,30]
[426425237,1782373583000,-500.0,0.00040273,30]
[426425238,1782373583000,-500.0,0.00040273,30]
[426425235,1782373583000,-500.0,0.00040273,30]
[426425233,1782373583000,-500.0,0.00040273,30]
[426425234,1782373583000,-500.0,0.00040273,30]
[426425231,1782373583000,-500.0,0.00040273,30]
[426425230,1782373583000,-500.0,0.00040273,30]
[426425229,1782373583000,-500.0,0.00040273,30]
[426425227,1782373583000,-500.0,0.00040273,30]
[426425236,1782373583000,-500.0,0.00040273,30]
[426425232,1782373583000,-500.0,0.00040273,30]
[426425240,1782373583000,-154.47,0.00040273,30]
[426425228,1782373583000,-500.0,0.00040273,30]
[426425241,1782373583000,-558.38980117,0.00040273,30]
[426425251,1782373583000,-500.0,0.00040273,30]
[426425252,1782373583000,-919.31,0.00040273,30]
[426425250,1782373583000,-730.63,0.00040273,30]
[426425247,1782373583000,-730.63,0.00040273,30]
[426425248,1782373583000,-500.0,0.00040273,30]
[426425249,1782373583000,-919.31,0.00040273,30]
[426425246,1782373583000,-919.31,0.00040273,30]
[426425244,1782373583000,-541.47823502,0.00040273,30]
[426425242,1782373583000,-500.0,0.00040273,30]
[426425243,1782373583000,-500.0,0.00040273,30]
[426425245,1782373583000,-919.31,0.00040273,30]
[426425239,1782373583000,-500.0,0.00040273,30]
[426425261,1782373584000,-535.09853474,0.00040273,30]
[426425253,1782373584000,-730.63,0.00040273,30]
[426425255,1782373584000,-919.31,0.00040273,30]
[426425254,1782373584000,-500.0,0.00040273,30]
[426425256,1782373584000,-730.63,0.00040273,30]
[426425257,1782373584000,-500.0,0.00040273,30]
[426425258,1782373584000,-730.63,0.00040273,30]
[426425260,1782373584000,-919.31,0.00040273,30]
[426425259,1782373584000,-500.0,0.00040273,30]
[426425263,1782373584000,-730.63,0.00040273,30]
[426425265,1782373584000,-730.63,0.00040273,30]
[426425264,1782373584000,-919.31,0.00040273,30]
[426425266,1782373584000,-919.31,0.00040273,30]
[426425268,1782373584000,-730.63,0.00040273,30]
[426425267,1782373584000,-730.63,0.00040273,30]
[426425270,1782373584000,-730.63,0.00040273,30]
[426425269,1782373584000,-919.31,0.00040273,30]
[426425271,1782373584000,-919.31,0.00040273,30]
[426425272,1782373584000,-730.63,0.00040273,30]
[426425262,1782373584000,-919.31,0.00040273,30]
[426425281,1782373585000,-919.31,0.00040273,30]
[426425282,1782373585000,-919.31,0.00040273,30]
[426425280,1782373585000,-919.31,0.00040273,30]
[426425279,1782373585000,-919.31,0.00040273,30]
[426425278,1782373585000,-531.31425544,0.00040273,30]
[426425275,1782373585000,-919.31,0.00040273,30]
[426425276,1782373585000,-730.63,0.00040273,30]
[426425274,1782373585000,-730.63,0.00040273,30]
[426425283,1782373585000,-919.31,0.00040273,30]
[426425273,1782373585000,-919.31,0.00040273,30]
[426425277,1782373585000,-919.31,0.00040273,30]
[426425285,1782373585000,-500.0,0.00040273,30]
[426425296,1782373585000,-730.63,0.00040273,30]
[426425287,1782373585000,-919.31,0.00040273,30]
[426425297,1782373585000,-730.63,0.00040273,30]
[426425294,1782373585000,-730.63,0.00040273,30]
[426425295,1782373585000,-535.9384825,0.00040273,30]
[426425292,1782373585000,-500.0,0.00040273,30]
[426425293,1782373585000,-500.0,0.00040273,30]
[426425284,1782373585000,-919.31,0.00040273,30]
[426425289,1782373585000,-919.31,0.00040273,30]
[426425290,1782373585000,-500.0,0.00040273,30]
[426425288,1782373585000,-500.0,0.00040273,30]
[426425286,1782373585000,-919.31,0.00040273,30]
[426425291,1782373585000,-919.54,0.00040273,30]
[426425307,1782373586000,-730.63,0.00040273,30]
[426425308,1782373586000,-500.0,0.00040273,30]
[426425305,1782373586000,-513.86362685,0.00040273,30]
[426425306,1782373586000,-500.0,0.00040273,30]
[426425304,1782373586000,-730.63,0.00040273,30]
[426425302,1782373586000,-500.0,0.00040273,30]
[426425299,1782373586000,-730.63,0.00040273,30]
[426425300,1782373586000,-500.0,0.00040273,30]
[426425301,1782373586000,-730.63,0.00040273,30]
[426425309,1782373586000,-730.63,0.00040273,30]
[426425303,1782373586000,-500.0,0.00040273,30]
[426425298,1782373586000,-500.0,0.00040273,30]
[426425310,1782373586000,-500.0,0.00040273,30]
[426425313,1782373586000,-730.63,0.00040273,30]
[426425311,1782373586000,-730.63,0.00040273,30]
[426425322,1782373586000,-500.0,0.00040273,30]
[426425323,1782373586000,-500.0,0.00040273,30]
[426425320,1782373586000,-500.0,0.00040273,30]
[426425319,1782373586000,-500.0,0.00040273,30]
[426425321,1782373586000,-500.0,0.00040273,30]
[426425317,1782373586000,-500.0,0.00040273,30]
[426425316,1782373586000,-500.0,0.00040273,30]
[426425315,1782373586000,-730.74956287,0.00040273,30]
[426425314,1782373586000,-532.74038787,0.00040273,30]
[426425312,1782373586000,-500.0,0.00040273,30]
[426425318,1782373586000,-519.50716035,0.00040273,30]
[426425331,1782373587000,-500.0,0.00040273,30]
[426425334,1782373587000,-500.0,0.00040273,30]
[426425330,1782373587000,-500.0,0.00040273,30]
[426425335,1782373587000,-500.0,0.00040273,30]
[426425332,1782373587000,-500.0,0.00040273,30]
[426425324,1782373587000,-500.0,0.00040273,30]
[426425329,1782373587000,-500.0,0.00040273,30]
[426425327,1782373587000,-575.97050368,0.00040273,30]
[426425325,1782373587000,-500.0,0.00040273,30]
[426425326,1782373587000,-500.0,0.00040273,30]
[426425328,1782373587000,-500.0,0.00040273,30]
[426425333,1782373587000,-500.0,0.00040273,30]
[426425342,1782373587000,-509.04085,0.00040273,30]
[426425336,1782373587000,-628.65779355,0.00040273,30]
[426425337,1782373587000,-500.0,0.00040273,30]
[426425347,1782373587000,-500.0,0.00040273,30]
[426425348,1782373587000,-500.0,0.00040273,30]
[426425346,1782373587000,-500.0,0.00040273,30]
[426425343,1782373587000,-500.0,0.00040273,30]
[426425349,1782373587000,-500.0,0.00040273,30]
[426425344,1782373587000,-500.0,0.00040273,30]
[426425341,1782373587000,-500.0,0.00040273,30]
[426425340,1782373587000,-500.0,0.00040273,30]
[426425338,1782373587000,-500.0,0.00040273,30]
[426425339,1782373587000,-500.0,0.00040273,30]
[426425345,1782373587000,-500.0,0.00040273,30]
[426425357,1782373588000,-500.0,0.00040273,30]
[426425350,1782373588000,-500.0,0.00040273,30]
[426425351,1782373588000,-576.64683597,0.00040273,30]
[426425352,1782373588000,-232.91137304,0.00040273,30]
[426425353,1782373588000,-500.0,0.00040273,30]
[426425355,1782373588000,-500.0,0.00040273,30]
[426425354,1782373588000,-500.0,0.00040273,30]
[426425356,1782373588000,-500.0,0.00040273,30]
[426425358,1782373588000,-500.0,0.00040273,30]
[426425359,1782373588000,-500.0,0.00040273,30]
[426425361,1782373588000,-500.0,0.00040273,30]
[426425360,1782373588000,-500.0,0.00040273,30]
[426425363,1782373588000,-565.18462635,0.00040273,30]
[426425362,1782373588000,-516.49213995,0.00040273,30]
[426425364,1782373588000,-500.0,0.00040273,30]
[426425366,1782373588000,-500.0,0.00040273,30]
[426425365,1782373588000,-500.0,0.00040273,30]
[426425368,1782373588000,-628.9888184,0.00040273,30]
[426425367,1782373588000,-500.0,0.00040273,30]
[426425369,1782373588000,-518.25401357,0.00040273,30]
[426425370,1782373588000,-158.26,0.000403,120]
[426425371,1782373588000,-29915.98814679,0.00040444,30]
[426425372,1782373655000,-558.64500507,0.00028613,14]
[426425373,1782373655000,-158.27,0.000383,120]
[426425374,1782373656000,-905.51,0.00039,30]
[426425375,1782373656000,-692.87,0.000402,30]
[426425377,1782373656000,-151.0,0.00040241,30]
[426425376,1782373656000,-175.32724928,0.00040241,30]
[426425378,1782373656000,-156.587,0.00040241,30]
[426425380,1782373656000,-168.3888056,0.00040241,30]
[426425382,1782373656000,-192.76827359,0.00040241,30]
[426425381,1782373656000,-174.61919141,0.00040241,30]
[426425383,1782373656000,-151.0,0.00040241,30]
[426425384,1782373656000,-173.20740938,0.00040241,30]
[426425379,1782373656000,-162.380719,0.00040241,30]
[426425386,1782373656000,-336.93644534,0.00040241,30]
[426425388,1782373656000,-151.0,0.00040241,30]
[426425387,1782373656000,-173.20740938,0.00040241,30]
[426425389,1782373656000,-500.0,0.00040241,30]
[426425395,1782373656000,-151.0,0.00040241,30]
[426425390,1782373656000,-173.20740939,0.00040241,30]
[426425391,1782373656000,-151.0,0.00040241,30]
[426425392,1782373656000,-512.23613616,0.00040241,30]
[426425393,1782373656000,-151.0,0.00040241,30]
[426425394,1782373656000,-151.0,0.00040241,30]
[426425396,1782373656000,-993547.75884491,0.00040444,30]
[426425385,1782373656000,-181.08010149,0.00040241,30]
[426425397,1782373678000,-924408.06735509,0.00040444,30]
[426425399,1782373678000,-200.0,0.00040552,90]
[426425398,1782373678000,-8975.21,0.00040464,30]
[426425400,1782373678000,-905.51,0.0004056,30]
[426425401,1782373678000,-163.6,0.000409,120]
[426425402,1782373678000,-500.0,0.00041495,60]
[426425403,1782373678000,-200.0,0.000415,120]
[426425404,1782373678000,-151.91779274,0.0004166,28]
[426425406,1782373678000,-163.6,0.000419,120]
[426425405,1782373678000,-178.2408,0.00041701,10]
[426425416,1782373679000,-200.0,0.00043192,120]
[426425415,1782373679000,-2738.9079892,0.00042924,28]
[426425414,1782373679000,-163.6,0.000429,120]
[426425413,1782373679000,-50000.0,0.000429,120]
[426425411,1782373679000,-16696.78426004,0.000424,120]
[426425417,1782373679000,-500.0,0.00043679,60]
[426425410,1782373679000,-200.0,0.00042379,120]
[426425409,1782373679000,-905.51,0.00042182,30]
[426425408,1782373679000,-8975.21,0.00042083,30]
[426425407,1782373679000,-500.0,0.00042,120]
[426425412,1782373679000,-3237.98702791,0.000427,120]
[426425419,1782373679000,-1000.0,0.000438,90]
[426425423,1782373679000,-626.34,0.00043993,120]
[426425420,1782373679000,-905.51,0.0004387,30]
[426425421,1782373679000,-163.6,0.000439,120]
[426425422,1782373679000,-200.0,0.00043945,120]
[426425424,1782373679000,-500.0,0.00044,120]
[426425425,1782373679000,-151.91779274,0.0004408,30]
[426425426,1782373679000,-194.65,0.00044143,120]
[426425427,1782373679000,-200.0,0.00044643,120]
[426425429,1782373679000,-5000.0,0.00045,120]
[426425428,1782373679000,-163.6,0.000449,120]
[426425430,1782373679000,-168.0,0.00045,30]
[426425431,1782373679000,-382.62,0.00045205,90]
[426425418,1782373679000,-8975.21,0.00043766,30]
[426425441,1782373680000,-5548.482749,0.0004655,120]
[426425439,1782373680000,-200.0,0.0004644,120]
[426425438,1782373680000,-500.0,0.00046,120]
[426425437,1782373680000,-500.0,0.00045978,60]
[426425442,1782373680000,-160.0,0.0004655,21]
[426425436,1782373680000,-182.035413,0.00045962,21]
[426425434,1782373680000,-905.51,0.00045624,30]
[426425433,1782373680000,-8975.21,0.00045517,30]
[426425432,1782373680000,-382.63,0.00045205,120]
[426425435,1782373680000,-163.6,0.000459,120]
[426425443,1782373680000,-573.980974,0.0004655,21]
[426425440,1782373680000,-188.596772,0.0004655,21]
[426425445,1782373680000,-151.91779274,0.00046731,33]
[426425455,1782373680000,-4037.22849826,0.00048398,120]
[426425453,1782373680000,-500.0,0.00048398,60]
[426425454,1782373680000,-160937.27943538,0.00048398,120]
[426425452,1782373680000,-500.0,0.00048,120]
[426425451,1782373680000,-32219.81,0.000479,120]
[426425444,1782373680000,-987.961948,0.0004655,21]
[426425449,1782373680000,-38000.0,0.00047694,15]
[426425448,1782373680000,-5000.0,0.000475,120]
[426425456,1782373680000,-382.86,0.000486,120]
[426425447,1782373680000,-3000.0,0.00047,120]
[426425446,1782373680000,-50000.0,0.000469,120]
[426425450,1782373680000,-178.2408,0.00047701,14]
[426425467,1782373681000,-542.43111209,0.0005,10]
[426425465,1782373681000,-10268.04347307,0.0005,120]
[426425464,1782373681000,-1000.0,0.0005,120]
[426425463,1782373681000,-151.91779274,0.00049612,35]
[426425462,1782373681000,-254.273,0.00049564,87]
[426425459,1782373681000,-10000.0,0.00049315,120]
[426425460,1782373681000,-304.80876844,0.00049315,120]
[426425458,1782373681000,-4420.62194497,0.00049,120]
[426425457,1782373681000,-626.34,0.00048959,120]
[426425466,1782373681000,-227.14428216,0.0005,20]
[426425461,1782373681000,-80795.70583041,0.0004943,120]
[426425468,1782373681000,-1728.8634747,0.0005,30]
[426425470,1782373681000,-199.0,0.0005,7]
[426425469,1782373681000,-561.83164158,0.0005,120]
[426425482,1782373681000,-3000.0,0.0005102,85]
[426425481,1782373681000,-3000.0,0.0005101,85]
[426425479,1782373681000,-500.0,0.00050818,60]
[426425480,1782373681000,-3000.0,0.00051,85]
[426425477,1782373681000,-38399.99999953,0.0005,120]
[426425478,1782373681000,-247.0,0.00050411,120]
[426425475,1782373681000,-168.0,0.0005,120]
[426425474,1782373681000,-357.64,0.0005,120]
[426425473,1782373681000,-357.64,0.0005,90]
[426425472,1782373681000,-357.63,0.0005,60]
[426425471,1782373681000,-4148.24576612,0.0005,120]
[426425476,1782373681000,-8250.0,0.0005,120]
[426425491,1782373682000,-217.0,0.0005249,30]
[426425494,1782373682000,-500.0,0.00053359,60]
[426425492,1782373682000,-151.91779274,0.00052723,38]
[426425489,1782373682000,-200.0,0.00052,120]
[426425483,1782373682000,-3000.0,0.0005103,85]
[426425487,1782373682000,-4143.918311,0.0005107,85]
[426425486,1782373682000,-3000.0,0.0005106,85]
[426425485,1782373682000,-3000.0,0.0005105,85]
[426425484,1782373682000,-3000.0,0.0005104,85]
[426425493,1782373682000,-1200.64767831,0.00053,120]
[426425488,1782373682000,-217.0,0.0005119,30]
[426425495,1782373682000,-217.0,0.0005379,30]
[426425490,1782373682000,-2008.933409,0.00052136,21]
[426425497,1782373682000,-696.13853432,0.00054,120]
[426425496,1782373682000,-800.0,0.00054,120]
[426425508,1782373682000,-217.0,0.000564,120]
[426425507,1782373682000,-2738.9079892,0.00056348,28]
[426425506,1782373682000,-151.91779274,0.00056065,40]
[426425505,1782373682000,-327.66976038,0.00056027,120]
[426425503,1782373682000,-217.0,0.0005509,120]
[426425509,1782373682000,-217.0,0.000577,120]
[426425501,1782373682000,-168.5402385,0.000549,120]
[426425502,1782373682000,-1000.0,0.00055,120]
[426425500,1782373682000,-317.58552249,0.000548,120]
[426425499,1782373682000,-181.25841877,0.00054795,7]
[426425498,1782373682000,-20203.03572778,0.0005439,120]
[426425504,1782373682000,-200.0,0.00056,120]
[426425518,1782373683000,-532.94180972,0.00059829,14]
[426425519,1782373683000,-2357.07800535,0.000599,120]
[426425516,1782373683000,-490.0,0.00059535,30]
[426425515,1782373683000,-217.0,0.00059,120]
[426425513,1782373683000,-80000.000099,0.00058,120]
[426425512,1782373683000,-200.0,0.00058,120]
[426425511,1782373683000,-1000.0,0.00058,120]
[426425510,1782373683000,-1000.0,0.00058,60]
[426425520,1782373683000,-4097.14625349,0.0006,120]
[426425514,1782373683000,-1159.84741072,0.000589,120]
[426425521,1782373683000,-430.79606647,0.0006,120]
[426425517,1782373683000,-151.91779274,0.00059637,43]
[426425523,1782373683000,-1000.0,0.0006,120]